{"text_format":"1","workbook":"xlsx","n_sheets":12,"sheets":["PAGE INITIAL","Mode ","Contact","Remerc","Info supl","Lavage Acide ","Lavage Basique  ","Lavage complet","Feuil3","Lavage Basique (LABO)","Lavage acide - CARL","Lavage acide -CARL"],"not_rendered":{"charts":0,"images":6,"macros":1,"external_links":0,"defined_names":2,"comments":2,"pivot_tables":0},"unopened":[],"bounds":{"document_bytes":16777216,"sheet_cells":100000,"rows_first":2000,"rows_last":500,"rows_between":2000,"halvings":0,"cell_chars":16384,"cell_head_chars":4096},"cells_cut":0,"cells_raw":0,"read":"whole","date_system":"1900"}

{"sheet":"PAGE INITIAL","index":0,"n_rows":0,"n_cols":0,"rows_kept":0,"cut":false,"hidden":false,"merged":[]}

{"sheet":"Mode ","index":1,"n_rows":0,"n_cols":0,"rows_kept":0,"cut":false,"hidden":false,"merged":[]}

{"sheet":"Contact","index":2,"n_rows":0,"n_cols":0,"rows_kept":0,"cut":false,"hidden":false,"merged":[]}

{"sheet":"Remerc","index":3,"n_rows":0,"n_cols":0,"rows_kept":0,"cut":false,"hidden":false,"merged":[]}

{"sheet":"Info supl","index":4,"n_rows":0,"n_cols":0,"rows_kept":0,"cut":false,"hidden":false,"merged":[]}

{"sheet":"Lavage Acide ","index":5,"n_rows":36,"n_cols":28,"rows_kept":36,"cut":false,"hidden":false,"merged":[[19,4,19,5],[19,6,19,7],[22,6,22,7],[20,4,20,5],[20,6,20,7],[23,4,23,5],[20,20,20,21],[21,20,21,21],[22,20,22,21],[23,20,23,21],[23,6,23,7],[22,4,22,5],[17,6,17,7],[17,4,17,5],[18,20,18,21],[9,20,9,21],[10,20,10,21],[11,20,11,21],[12,20,12,21],[11,14,11,15],[12,14,12,15],[14,20,14,21],[39,18,39,20],[12,16,12,17],[2,22,2,23],[8,22,8,23],[3,20,3,21],[17,20,17,21],[5,20,5,21],[11,16,11,17],[4,20,4,21],[2,20,2,21],[14,22,14,23],[20,22,20,23],[15,20,15,21],[16,20,16,21],[6,20,6,21],[24,20,24,21],[8,26,8,27],[13,4,13,5],[13,6,13,7],[16,6,16,7],[14,4,14,5],[14,6,14,7],[14,9,14,10],[16,4,16,5],[8,20,8,21],[15,14,15,17]]}
[null,null,null,null,null,null,null,null,null,null,null,null,null,null,null,null,null,null,null,null,null,"Facteur correction:",{"$f":"100-W2","v":{"$error":"#DIV/0!"}},100]
[null,null,null,null,null,null,null,null,null,null,null,null,null,null,null,null,null,null,null,null,"Composition 1",null,{"$f":"(L10-L11)*100/L10","v":{"$error":"#DIV/0!"}}]
[null,null,null,null,null,null,null,null,null,null,null,null,null,null,null,null,null,null,null,null,"Formule",null,{"$f":"VLOOKUP(G14,Tableau38[#All],2,FALSE)","v":{"$error":"#N/A"}},null,null,null,"Fn"]
[null,null,null,null,null,null,null,null,null,null,null,null,null,null,null,null,null,null,null,null,"Masse molaire",null,{"$f":"IF(ISTEXT(G14),VLOOKUP(G14,Tableau38[#All],3,FALSE),\"1\")","v":"1"},"g/mol",null,"Composition 1",{"$f":"IF(ISTEXT(G14),IF(Q$12=\"Hydroxyde de sodium\",VLOOKUP(G14,Tableau4[#All],4,FALSE),VLOOKUP(G14,Tableau4[#All],3,FALSE)),\"1\")","v":"1"}]
[null,null,null,null,null,null,null,null,null,null,null,null,null,null,null,null,null,null,null,null,"Masse volumique",null,{"$f":"IF(ISTEXT(G14),IF(G10=\"Liquide\",VLOOKUP(G14,Tableau38[#All],4,FALSE),VLOOKUP(G14,Tableau38[#All],5,FALSE)),\"1\")","v":"1"},"g/cm³",null,"Composition 2",{"$f":"IF(ISTEXT(G17),IF(Q$12=\"Hydroxyde de sodium\",VLOOKUP(G17,Tableau4[#All],4,FALSE),VLOOKUP(G17,Tableau4[#All],3,FALSE)),\"1\")","v":"1"}]
[null,null,null,null,null,null,null,null,null,null,null,null,null,null,null,null,null,null,null,null,"Concentration (mol/L)",null,{"$f":"IF(G10=\"Solide\",((G$11/G$12)*(G15/100)*((W$1)/100)/W4),((G$11/G$12)*W5*(G15/100)*((W$1)/100)/W4))","v":{"$error":"#DIV/0!"}},"mol/L",null,"Composition 3",{"$f":"IF(ISTEXT(G20),IF(Q$12=\"Hydroxyde de sodium\",VLOOKUP(G20,Tableau4[#All],4,FALSE),VLOOKUP(G20,Tableau4[#All],3,FALSE)),\"1\")","v":"1"}]
[null,null,null,null,null,null,null,null,null,null,null,null,null,null,null,null,null,null,null,null,"N. moles (mols)",null,{"$f":"IF(G$10=\"Solide\",(G$11*(G15/100)*(W$1/100)/W4),(G$11*W5*(G15/100)*(W$1/100)/W4))","v":{"$error":"#DIV/0!"}},{"$f":"IF(G$10=\"Solide\",(G$11*(G15/100)*(X$1/100)/W4),(G$11*W5*(G15/100)*(X$1/100)/W4))","v":0},null,"Composition 4",{"$f":"IF(ISTEXT(G23),IF(Q$12=\"Hydroxyde de sodium\",VLOOKUP(G23,Tableau4[#All],4,FALSE),VLOOKUP(G23,Tableau4[#All],3,FALSE)),\"1\")","v":"1"}]
[null,null,null,null,null,null,null,null,null,null,null,null,null,null,null,null,null,null,null,null,"Composition 2"]
[null,null,null,null,null,null,null,null,null,null,null,null,null,null,null,null,null,null,null,null,"Formule",null,{"$f":"VLOOKUP(G17,Tableau38[#All],2,FALSE)","v":{"$error":"#N/A"}},null,null,"Formule",{"$f":"VLOOKUP(Q12,Tableau3[#All],2,FALSE)","v":{"$error":"#N/A"}}]
[null,null,null,null,null,"Type de produit : ",null,null,null,null,"Condutivité avant : ",null,"mS/cm",null,null,"Type :  ",null,null,null,null,"Masse molaire",null,{"$f":"IF(ISTEXT(G17),VLOOKUP(G17,Tableau38[#All],3,FALSE),\"1\")","v":"1"},"g/mol",null,"Masse molaire",{"$f":"VLOOKUP(Q12,Tableau3[#All],3,FALSE)","v":{"$error":"#N/A"}},"g/mol"]
[null,null,null,null,null,"Quantité de produit : ",null,{"$f":"IF(G10=\"solide\",\"g de produit\", \"ml de produit\")","v":"ml de produit"},null,null,"Conductivité après : ",null,"mS/cm",null,null,null,null,null,null,null,"Masse volumique",null,{"$f":"IF(ISTEXT(G17),IF(G10=\"Liquide\",VLOOKUP(G17,Tableau38[#All],4,FALSE),VLOOKUP(G17,Tableau38[#All],5,FALSE)),\"1\")","v":"1"},"g/cm³",null,"Masse volumique",{"$f":"IF(Q10=\"Liquide\",VLOOKUP(Q12,Tableau3[#All],4,FALSE),VLOOKUP(Q12,Tableau3[#All],5,FALSE))","v":{"$error":"#N/A"}},"g/cm³"]
[null,null,null,null,null,"Volume de filtrat : ",null,"L",null,null,null,null,null,null,"Produit : ",null,null,null,null,null,"Concentration (mol/L)",null,{"$f":"IF(G$10=\"Solide\",((G$11/G$12)*(G18/100)*((W$1)/100)/W10),((G$11/G$12)*W11*(G18/100)*((W$1)/100)/W10))","v":{"$error":"#DIV/0!"}},"mol/L"]
[null,null,null,null,null,null,null,null,null,null,null,null,null,null,"Porcentage : ",null,null,null,null,null,"N. moles (mols)",null,{"$f":"IF(G$10=\"Solide\",(G$11*(G18/100)*(W$1/100)/W10),(G$11*W11*(G18/100)*(W$1/100)/W10))","v":{"$error":"#DIV/0!"}},{"$f":"IF(G$10=\"Solide\",(G$11*(G18/100)*(X$1/100)/W10),(G$11*W11*(G18/100)*(X$1/100)/W10))","v":0}]
[null,null,null,null,"Composition 1",null,null,null,null,null,null,null,null,null,null,null,null,null,null,null,"Composition 3"]
[null,null,null,null,"Pourcentage:",null,null,null,null,null,null,null,null,null,null,null,null,null,null,null,"Formule",null,{"$f":"VLOOKUP(G20,Tableau38[#All],2,FALSE)","v":{"$error":"#N/A"}}]
[null,null,null,null,null,null,null,null,null,null,null,null,null,null," Quantité de produit necessaire :",null,null,null,null,null,"Masse molaire",null,{"$f":"IF(ISTEXT(G20),VLOOKUP(G20,Tableau38[#All],3,FALSE),\"1\")","v":"1"},"g/mol"]
[null,null,null,null,"Composition 2",null,null,null,null,null,null,null,null,null,null,null,null,null,null,null,"Masse volumique",null,{"$f":"IF(ISTEXT(G20),IF(G10=\"Liquide\",VLOOKUP(G20,Tableau38[#All],4,FALSE),VLOOKUP(G20,Tableau38[#All],5,FALSE)),\"1\")","v":"1"},"g/cm³"]
[null,null,null,null,"Pourcentage:",null,null,null,null,null,null,null,null,null,"Minimale",null,null,null,null,null,"Concentration (mol/L)",null,{"$f":"IF(G$10=\"Solide\",((G$11/G$12)*(G21/100)*((W$1)/100)/W16),((G$11/G$12)*W17*(G21/100)*((W$1)/100)/W16))","v":{"$error":"#DIV/0!"}},"mol/L"]
[null,null,null,null,null,null,null,null,null,null,null,null,null,null,{"$f":"IF(Q10=\"solide\",(IF(Q12=\"Bicarbonate de sodium\",(((W7/AA4)+(W13/AA5)+(W19/AA6)+(W25/AA7))*AA10*(100/Q13)*10),(((W7/AA4)+(W13/AA5)+(W19/AA6)+(W25/AA7))*AA10*(100/Q13)))),(((W7/AA4)+(W13/AA5)+(W19/AA6)+(W25/AA7))*(AA10/AA11)*(100/Q13)))","v":{"$error":"#DIV/0!"}},{"$f":"IF(Q10=\"solide\",\"g de\", \"ml de\")","v":"ml de"},{"$f":"Q12","v":0},null,null,null,"N. moles (mols)",null,{"$f":"IF(G$10=\"Solide\",(G$11*(G21/100)*(W$1/100)/W16),(G$11*W17*(G21/100)*(W$1/100)/W16))","v":{"$error":"#DIV/0!"}},{"$f":"IF(G$10=\"Solide\",(G$11*(G21/100)*(X$1/100)/W16),(G$11*W17*(G21/100)*(X$1/100)/W16))","v":0}]
[null,null,null,null,"Composition 3",null,null,null,null,null,null,null,null,null,"Maximale",null,null,null,null,null,"Composition 4"]
[null,null,null,null,"Pourcentage:",null,null,null,null,null,null,null,null,null,{"$f":"IF(Q10=\"solide\",(IF(Q12=\"Bicarbonate de sodium\",(((X7/AA4)+(X13/AA5)+(X19/AA6)+(X25/AA7))*AA10*(100/Q13)*10),(((X7/AA4)+(X13/AA5)+(X19/AA6)+(X25/AA7))*AA10*(100/Q13)))),(((X7/AA4)+(X13/AA5)+(X19/AA6)+(X25/AA7))*(AA10/AA11)*(100/Q13)))","v":{"$error":"#N/A"}},{"$f":"IF(Q10=\"solide\",\"g de\", \"ml de\")","v":"ml de"},{"$f":"Q12","v":0},null,null,null,"Formule",null,{"$f":"VLOOKUP(G23,Tableau38[#All],2,FALSE)","v":{"$error":"#N/A"}}]
[null,null,null,null,null,null,null,null,null,null,null,null,null,null,null,null,null,null,null,null,"Masse molaire",null,{"$f":"IF(ISTEXT(G23),VLOOKUP(G23,Tableau38[#All],3,FALSE),\"1\")","v":"1"},"g/mol"]
[null,null,null,null,"Composition 4",null,null,null,null,null,null,null,null,null,null,null,null,null,null,null,"Masse volumique",null,{"$f":"IF(ISTEXT(G23),IF(G10=\"Liquide\",VLOOKUP(G23,Tableau38[#All],4,FALSE),VLOOKUP(G23,Tableau38[#All],5,FALSE)),\"1\")","v":"1"},"g/cm³"]
[null,null,null,null,"Pourcentage:",null,null,null,null,null,null,null,null,null,null,null,null,null,null,null,"Concentration (mol/L)",null,{"$f":"IF(G$10=\"Solide\",((G$11/G$12)*(G24/100)*((W$1)/100)/W22),((G$11/G$12)*W23*(G24/100)*((W$1)/100)/W22))","v":{"$error":"#DIV/0!"}},"mol/L"]
[null,null,null,null,null,null,null,null,null,null,null,null,null,null,null,null,null,null,null,null,"N. moles (mols)",null,{"$f":"IF(G$10=\"Solide\",(G$11*(G24/100)*(W$1/100)/W22),(G$11*W23*(G24/100)*(W$1/100)/W22))","v":{"$error":"#DIV/0!"}},{"$f":"IF(G$10=\"Solide\",(G$11*(G24/100)*(X$1/100)/W22),(G$11*W23*(G24/100)*(X$1/100)/W22))","v":0}]
[]
[]
[]
[]
[]
[]
[]
[]
[]
[]
[null,null,null,null,null,null,null,null,null,null,null,null,null,null,null,null,null,null," "]

{"sheet":"Lavage Basique  ","index":6,"n_rows":36,"n_cols":28,"rows_kept":36,"cut":false,"hidden":false,"merged":[[23,6,23,7],[14,20,14,21],[14,22,14,23],[15,20,15,21],[23,4,23,5],[15,14,15,16],[17,20,17,21],[16,20,16,21],[18,20,18,21],[21,14,21,16],[17,6,17,7],[16,4,16,5],[17,4,17,5],[22,4,22,5],[19,4,19,5],[19,6,19,7],[2,22,2,23],[8,22,8,23],[3,20,3,21],[5,20,5,21],[6,20,6,21],[2,20,2,21],[22,6,22,7],[13,4,13,5],[13,6,13,7],[16,6,16,7],[14,4,14,5],[14,6,14,7],[20,4,20,5],[20,6,20,7],[14,9,14,10],[11,16,11,17],[4,20,4,21],[8,26,8,27],[8,20,8,21],[9,20,9,21],[11,20,11,21],[10,20,10,21],[12,20,12,21],[11,14,11,15],[12,14,12,15],[12,16,12,17],[20,22,20,23],[21,20,21,21],[22,20,22,21],[23,20,23,21],[24,20,24,21],[20,20,20,21]]}
[null,null,null,null,null,null,null,null,null,null,null,null,null,null,null,null,null,null,null,null,null,"Facteur correction:",{"$f":"100-W2","v":{"$error":"#DIV/0!"}},100]
[null,null,null,null,null,null,null,null,null,null,null,null,null,null,null,null,null,null,null,null,"Composition 1",null,{"$f":"(L10-L11)*100/L10","v":{"$error":"#DIV/0!"}}]
[null,null,null,null,null,null,null,null,null,null,null,null,null,null,null,null,null,null,null,null,"Formule",null,{"$f":"VLOOKUP(G14,Tableau1[#All],2,FALSE)","v":{"$error":"#N/A"}},null,null,null,"Fn"]
[null,null,null,null,null,null,null,null,null,null,null,null,null,null,null,null,null,null,null,null,"Masse molaire",null,{"$f":"IF(ISTEXT(G14),VLOOKUP(G14,Tableau1[#All],3,FALSE),\"1\")","v":"1"},"g/mol",null,"Composition 1",{"$f":"IF(ISTEXT(G14),IF(Q$12=\"Acide citrique\",VLOOKUP(G14,Tableau4[#All],2,FALSE),VLOOKUP(G14,Tableau4[#All],3,FALSE)),\"1\")","v":"1"}]
[null,null,null,null,null,null,null,null,null,null,null,null,null,null,null,null,null,null,null,null,"Masse volumique",null,{"$f":"IF(ISTEXT(G14),IF(G10=\"Liquide\",VLOOKUP(G14,Tableau1[#All],4,FALSE),VLOOKUP(G14,Tableau1[#All],5,FALSE)),\"1\")","v":"1"},"g/cm³",null,"Composition 2",{"$f":"IF(ISTEXT(G17),IF(Q$12=\"Acide citrique\",VLOOKUP(G17,Tableau4[#All],2,FALSE),VLOOKUP(G17,Tableau4[#All],3,FALSE)),\"1\")","v":"1"}]
[null,null,null,null,null,null,null,null,null,null,null,null,null,null,null,null,null,null,null,null,"Concentration (mol/L)",null,{"$f":"IF(G10=\"Solide\",((G$11/(G$12))*(G15/100)*((W$1)/100)/W4),((G$11/G$12)*W5*(G15/100)*((W$1)/100)/W4))","v":{"$error":"#DIV/0!"}},"mol/L",null,"Composition 3",{"$f":"IF(ISTEXT(G20),IF(Q$12=\"Acide citrique\",VLOOKUP(G20,Tableau4[#All],2,FALSE),VLOOKUP(G20,Tableau4[#All],3,FALSE)),\"1\")","v":"1"}]
[null,null,null,null,null,null,null,null,null,null,null,null,null,null,null,null,null,null,null,null,"N. moles (mols)",null,{"$f":"IF(G$10=\"Solide\",(G$11*(G15/100)*(W$1/100)/W4),(G$11*W5*(G15/100)*(W$1/100)/W4))","v":{"$error":"#DIV/0!"}},{"$f":"IF(G$10=\"Solide\",(G$11*(G15/100)*(X$1/100)/W4),(G$11*W5*(G15/100)*(X$1/100)/W4))","v":0},null,"Composition 4",{"$f":"IF(ISTEXT(G23),IF(Q$12=\"Acide citrique\",VLOOKUP(G23,Tableau4[#All],2,FALSE),VLOOKUP(G23,Tableau4[#All],3,FALSE)),\"1\")","v":"1"}]
[null,null,null,null,null,null,null,null,null,null,null,null,null,null,null,null,null,null,null,null,"Composition 2"]
[null,null,null,null,null,null,null,null,null,null,null,null,null,null,null,null,null,null,null,null,"Formule",null,{"$f":"VLOOKUP(G17,Tableau1[#All],2,FALSE)","v":{"$error":"#N/A"}},null,null,"Formule",{"$f":"VLOOKUP(Q12,Tableau3[#All],2,FALSE)","v":{"$error":"#N/A"}}]
[null,null,null,null,null,"Type de savon : ",null,null,null,null,"Condutivité avant : ",null,"mS/cm",null,null,"Type :",null,null,null,null,"Masse molaire",null,{"$f":"IF(ISTEXT(G17),VLOOKUP(G17,Tableau1[#All],3,FALSE),\"1\")","v":"1"},"g/mol",null,"Masse molaire",{"$f":"VLOOKUP(Q12,Tableau3[#All],3,FALSE)","v":{"$error":"#N/A"}},"g/mol"]
[null,null,null,null,null,"Quantité de savon : ",null,{"$f":"IF(G10=\"solide\",\"g de produit\", \"ml de produit\")","v":"ml de produit"},null,null,"Conductivité après : ",null,"mS/cm",null,null,null,null,null,null,null,"Masse volumique",null,{"$f":"IF(ISTEXT(G17),IF(G10=\"Liquide\",VLOOKUP(G17,Tableau1[#All],4,FALSE),VLOOKUP(G17,Tableau1[#All],5,FALSE)),\"1\")","v":"1"},"g/cm³",null,"Masse volumique",{"$f":"IF(Q10=\"Liquide\",VLOOKUP(Q12,Tableau3[#All],4,FALSE),VLOOKUP(Q12,Tableau3[#All],5,FALSE))","v":{"$error":"#N/A"}},"g/cm³"]
[null,null,null,null,null,"Volume de filtrat : ",null,"L",null,null,null,null,null,null,"Produit : ",null,null,null,null,null,"Concentration (mol/L)",null,{"$f":"IF(G$10=\"Solide\",((G$11/G$12)*(G18/100)*((W$1)/100)/W10),((G$11/G$12)*W11*(G18/100)*((W$1)/100)/W10))","v":{"$error":"#DIV/0!"}},"mol/L"]
[null,null,null,null,null,null,null,null,null,null,null,null,null,null,"Porcentage : ",null,null,null,null,null,"N. moles (mols)",null,{"$f":"IF(G$10=\"Solide\",(G$11*(G18/100)*(W$1/100)/W10),(G$11*W11*(G18/100)*(W$1/100)/W10))","v":{"$error":"#DIV/0!"}},{"$f":"IF(G$10=\"Solide\",(G$11*(G18/100)*(X$1/100)/W10),(G$11*W11*(G18/100)*(X$1/100)/W10))","v":0}]
[null,null,null,null,"Composition 1",null,null,null,null,null,null,null,null,null,null,null,null,null,null,null,"Composition 3"]
[null,null,null,null,"Pourcentage:",null,null,null,null,null,null,null,null,null,null,null,null,null,null,null,"Formule",null,{"$f":"VLOOKUP(G20,Tableau1[#All],2,FALSE)","v":{"$error":"#N/A"}}]
[null,null,null,null,null,null,null,null,null,null,null,null,null,null,"Quantité de produit necessaire :",null,null,null,null,null,"Masse molaire",null,{"$f":"IF(ISTEXT(G20),VLOOKUP(G20,Tableau1[#All],3,FALSE),\"1\")","v":"1"},"g/mol"]
[null,null,null,null,"Composition 2",null,null,null,null,null,null,null,null,null,null,null,null,null,null,null,"Masse volumique",null,{"$f":"IF(ISTEXT(G20),IF(G10=\"Liquide\",VLOOKUP(G20,Tableau1[#All],4,FALSE),VLOOKUP(G20,Tableau1[#All],5,FALSE)),\"1\")","v":"1"},"g/cm³"]
[null,null,null,null,"Pourcentage:",null,null,null,null,null,null,null,null,null,"Minimale",null,null,null,null,null,"Concentration (mol/L)",null,{"$f":"IF(G$10=\"Solide\",((G$11/G$12)*(G21/100)*((W$1)/100)/W16),((G$11/G$12)*W17*(G21/100)*((W$1)/100)/W16))","v":{"$error":"#DIV/0!"}},"mol/L"]
[null,null,null,null,null,null,null,null,null,null,null,null,null,null,{"$f":"IF(Q10=\"solide\",(IF(Q12=\"Bicarbonate de sodium\",(((W7/AA4)+(W13/AA5)+(W19/AA6)+(W25/AA7))*AA10*(100/Q13)*10),(((W7/AA4)+(W13/AA5)+(W19/AA6)+(W25/AA7))*AA10*(100/Q13)))),(((W7/AA4)+(W13/AA5)+(W19/AA6)+(W25/AA7))*(AA10/AA11)*(100/Q13)))","v":{"$error":"#DIV/0!"}},{"$f":"IF(Q10=\"solide\",\"g de\", \"ml de\")","v":"ml de"},{"$f":"Q12","v":0},null,null,null,"N. moles (mols)",null,{"$f":"IF(G$10=\"Solide\",(G$11*(G21/100)*(W$1/100)/W16),(G$11*W17*(G21/100)*(W$1/100)/W16))","v":{"$error":"#DIV/0!"}},{"$f":"IF(G$10=\"Solide\",(G$11*(G21/100)*(X$1/100)/W16),(G$11*W17*(G21/100)*(X$1/100)/W16))","v":0}]
[null,null,null,null,"Composition 3",null,null,null,null,null,null,null,null,null,"Maximale",null,null,null,null,null,"Composition 4"]
[null,null,null,null,"Pourcentage:",null,null,null,null,null,null,null,null,null,{"$f":"IF(Q10=\"solide\",(IF(Q12=\"Bicarbonate de sodium\",(((X7/AA4)+(X13/AA5)+(X19/AA6)+(X25/AA7))*AA10*(100/Q13)*10),(((X7/AA4)+(X13/AA5)+(X19/AA6)+(X25/AA7))*AA10*(100/Q13)))),(((X7/AA4)+(X13/AA5)+(X19/AA6)+(X25/AA7))*(AA10/AA11)*(100/Q13)))","v":{"$error":"#N/A"}},{"$f":"IF(Q10=\"solide\",\"g de\", \"ml de\")","v":"ml de"},{"$f":"Q12","v":0},null,null,null,"Formule",null,{"$f":"VLOOKUP(G23,Tableau1[#All],2,FALSE)","v":{"$error":"#N/A"}}]
[null,null,null,null,null,null,null,null,null,null,null,null,null,null,null,null,null,null,null,null,"Masse molaire",null,{"$f":"IF(ISTEXT(G23),VLOOKUP(G23,Tableau1[#All],3,FALSE),\"1\")","v":"1"},"g/mol"]
[null,null,null,null,"Composition 4",null,null,null,null,null,null,null,null,null,null,null,null,null,null,null,"Masse volumique",null,{"$f":"IF(ISTEXT(G23),IF(G10=\"Liquide\",VLOOKUP(G23,Tableau1[#All],4,FALSE),VLOOKUP(G23,Tableau1[#All],5,FALSE)),\"1\")","v":"1"},"g/cm³"]
[null,null,null,null,"Pourcentage:",null,null,null,null,null,null,null,null,null,null,null,null,null,null,null,"Concentration (mol/L)",null,{"$f":"IF(G$10=\"Solide\",((G$11/G$12)*(G24/100)*((W$1)/100)/W22),((G$11/G$12)*W23*(G24/100)*((W$1)/100)/W22))","v":{"$error":"#DIV/0!"}},"mol/L"]
[null,null,null,null,null,null,null,null,null,null,null,null,null,null,null,null,null,null,null,null,"N. moles (mols)",null,{"$f":"IF(G$10=\"Solide\",(G$11*(G24/100)*(W$1/100)/W22),(G$11*W23*(G24/100)*(W$1/100)/W22))","v":{"$error":"#DIV/0!"}},{"$f":"IF(G$10=\"Solide\",(G$11*(G24/100)*(X$1/100)/W22),(G$11*W23*(G24/100)*(X$1/100)/W22))","v":0}]
[]
[]
[]
[]
[]
[]
[]
[]
[]
[]
[null,null,null,null,null,null,null,null,null,null,null,null,null,null,null,null,null," "]

{"sheet":"Lavage complet","index":7,"n_rows":99,"n_cols":23,"rows_kept":99,"cut":false,"hidden":false,"merged":[[53,4,53,5],[54,4,54,5],[55,4,55,5],[56,4,56,5],[57,4,57,5],[39,9,39,10],[40,9,40,10],[41,9,41,10],[42,9,42,10],[43,9,43,10],[51,9,51,10],[52,9,52,10],[53,9,53,10],[54,9,54,10],[55,9,55,10],[56,9,56,10],[57,9,57,10],[45,9,45,10],[53,6,53,7],[45,4,45,5],[45,6,45,7],[52,6,52,7],[46,4,46,5],[46,6,46,7],[15,21,15,22],[13,21,13,22],[14,21,14,22],[36,14,36,15],[49,14,49,15],[50,14,50,15],[46,14,46,15],[46,16,46,17],[53,16,53,17],[47,14,47,15],[48,14,48,15],[37,14,37,15],[44,14,44,15],[44,16,44,17],[16,14,16,15],[17,14,17,15],[36,20,36,21],[39,14,39,15],[40,14,40,15],[41,14,41,15],[42,14,42,15],[43,14,43,15],[52,16,52,17],[98,6,98,13],[51,16,51,17],[5,21,5,22],[51,14,51,15],[52,14,52,15],[53,14,53,15],[34,14,34,15],[35,14,35,15],[79,10,79,11],[54,14,54,15],[55,14,55,15],[56,14,56,15],[57,14,57,15],[33,14,33,15],[37,9,37,10],[48,9,48,10],[49,9,49,10],[50,9,50,10],[13,14,13,15],[13,16,13,17],[16,16,16,17],[14,14,14,15],[14,16,14,17],[17,16,17,17],[47,4,47,5],[52,11,52,12],[46,9,46,10],[46,11,46,12],[45,11,45,12],[51,4,51,5],[52,4,52,5],[42,4,42,5],[43,4,43,5],[51,11,51,12],[33,9,33,10],[51,6,51,7],[33,16,33,17],[39,16,39,17],[45,14,45,15],[45,16,45,17],[33,11,33,12],[39,11,39,12],[34,9,34,10],[35,9,35,10],[36,9,36,10],[44,11,44,12],[33,4,33,5],[33,6,33,7],[39,6,39,7],[16,4,16,5],[17,4,17,5],[53,11,53,12],[47,9,47,10],[44,9,44,10],[48,4,48,5],[49,4,49,5],[50,4,50,5],[16,9,16,10],[17,9,17,10],[34,4,34,5],[35,4,35,5],[36,4,36,5],[37,4,37,5],[44,4,44,5],[44,6,44,7],[25,10,25,11],[26,10,26,11],[39,4,39,5],[40,4,40,5],[41,4,41,5],[13,9,13,10],[13,11,13,12],[16,11,16,12],[14,9,14,10],[14,11,14,12],[17,11,17,12],[13,4,13,5],[13,6,13,7],[16,6,16,7],[14,4,14,5],[14,6,14,7],[17,6,17,7]]}
[]
[]
[]
[]
[]
[null,null,null,null,null,null,null,null,null,null,null,null,null,null,null,null,null,null,null,null,"Formule",{"$f":"VLOOKUP(K26,Tableau3[#All],2,FALSE)","v":{"$error":"#N/A"}}]
[null,null,null,null,null,null,null,null,null,null,null,null,null,null,null,null,null,null,null,null,"Masse molaire",{"$f":"VLOOKUP(K26,Tableau3[#All],3,FALSE)","v":{"$error":"#N/A"}},"g/mol"]
[null,null,null,null,null,null,null,null,null,null,null,null,null,null,null,null,null,null,null,null,"Masse volumique",{"$f":"IF(K25=\"Liquide\",VLOOKUP(K26,Tableau3[#All],4,FALSE),VLOOKUP(K26,Tableau3[#All],5,FALSE))","v":{"$error":"#N/A"}},"g/cm³"]
[]
[null,null,null,null,null,"Type de savon : ",null,null,null,null,"Type de produit : ",null,null,null,null,"Type de savon : "]
[null,null,null,null,null,"Quantité de savon : ",null,{"$f":"IF(G10=\"solide\",\"g de produit\", \"ml de produit\")","v":"ml de produit"},null,null,"Quantité de produit : ",null,{"$f":"IF(L10=\"solide\",\"g de produit\", \"ml de produit\")","v":"ml de produit"},null,null,"Quantité de savon : ",null,{"$f":"IF(Q10=\"solide\",\"g de produit\", \"ml de produit\")","v":"ml de produit"}]
[null,null,null,null,null,"Volume de filtrat : ",null,"L",null,null,"Volume filtrat : ",null,"L",null,null,"Volume filtrat : ",null,"L"]
[]
[null,null,null,null,"Composition 1",null,null,null,null,"Composition 1",null,null,null,null,"Composition 1"]
[null,null,null,null,"Pourcentage:",null,null,null,null,"Pourcentage:",null,null,null,null,"Pourcentage:"]
[]
[null,null,null,null,"Composition 2",null,null,null,null,"Composition 2",null,null,null,null,"Composition 2"]
[null,null,null,null,"Pourcentage:",null,null,null,null,"Pourcentage:",null,null,null,null,"Pourcentage:"]
[]
[null,null,null,null,null,"Conductivité avant:",null,"mS/cm",null,null,"Conductivité avant:",null,"mS/cm",null,null,"Conductivité avant:",null,"mS/cm"]
[null,null,null,null,null,"Conductivité après:",null,"mS/cm",null,null,"Conductivité après:",null,"mS/cm",null,null,"Conductivité après:",null,"mS/cm",null,null,{"$f":"IF(K25=\"solide\",(IF(K26=\"Bicarbonate de sodium\",(((G38+G44-L38-L44+Q38+Q44)/(_xlfn.SWITCH(K26,\"Acide citrique\",VLOOKUP(G14,Tableau6[#All],2,FALSE),\"Hydroxyde de sodium\",VLOOKUP(L14,Tableau6[#All],4,FALSE),\"Bicarbonate de sodium\",(IF(L23=\"Solution basique, il faut le neutraliser avec acide ou bicarbonate de sodium\",VLOOKUP(G14,Tableau6[#All],3,FALSE),VLOOKUP(L14,Tableau6[#All],5,FALSE))))))*V7*(100/K27)*10),(((G38+G44-L38-L44+Q38+Q44)/(_xlfn.SWITCH(K26,\"Acide citrique\",VLOOKUP(G14,Tableau6[#All],2,FALSE),\"Hydroxyde de sodium\",VLOOKUP(L14,Tableau6[#All],4,FALSE),\"Bicarbonate de sodium\",(IF(L23=\"Solution basique, il faut le neutraliser avec acide ou bicarbonate de sodium\",VLOOKUP(G14,Tableau6[#All],3,FALSE),VLOOKUP(L14,Tableau6[#All],5,FALSE))))))*V7*(100/K27)))),(((G38+G44-L38-L44+Q38+Q44)/(_xlfn.SWITCH(K26,\"Acide citrique\",VLOOKUP(G14,Tableau6[#All],2,FALSE),\"Hydroxyde de sodium\",VLOOKUP(L14,Tableau6[#All],4,FALSE),\"Bicarbonate de sodium\",(IF(L23=\"Solution basique, il faut le neutraliser avec acide ou bicarbonate de sodium\",VLOOKUP(G14,Tableau6[#All],3,FALSE),VLOOKUP(L14,Tableau6[#All],5,FALSE))))))*(V7/V8)*(100/K27)))","v":{"$error":"#N/A"}}]
[]
[null,null,null,null,null,null,null,null,null,"Recommnandation:",null,{"$f":"IF(G38+G44-L38-L44+Q38+Q44=0, \"neutre\", IF(G38+G44-L38-L44+Q38+Q44>0,\"Solution basique, il faut le neutraliser avec acide ou bicarbonate de sodium\", \"Solution acide, il faut le neutraliser avec basique ou bicarbonate de sodium\"))","v":"neutre"},null,null,null,null,null,null,null,null,{"$f":"IF(K25=\"solide\",(IF(K26=\"Bicarbonate de sodium\",(((G38+G44-L38-L44+Q38+Q44)/(IF(L23=\"Solution basique, il faut le neutraliser avec acide ou bicarbonate de sodium\",VLOOKUP(G14,Tableau6[#All],3,FALSE),VLOOKUP(L14,Tableau6[#All],5,FALSE))))*V7*(100/K27)*10),(((G38+G44-L38-L44+Q38+Q44)/(_xlfn.SWITCH(K26,\"Acide citrique\",VLOOKUP(G14,Tableau6[#All],2,FALSE),\"Hydroxyde de sodium\",VLOOKUP(L14,Tableau6[#All],4,FALSE))))*V7*(100/K27)))),(((G38+G44-L38-L44+Q38+Q44)/(_xlfn.SWITCH(K26,\"Acide citrique\",VLOOKUP(G14,Tableau6[#All],2,FALSE),\"Hydroxyde de sodium\",VLOOKUP(L14,Tableau6[#All],4,FALSE))))*(V7/V8)*(100/K27)))","v":{"$error":"#N/A"}}]
[null,null,null,null,null,null,null,null,null,null,null,null,null,"Quantité de produit necessaire ",null,null,null,null,null,null,{"$f":"IF(ISNA(ABS(IF(K25=\"solide\",(IF(K26=\"Bicarbonate de sodium\",(((G38+G44-L38-L44+Q38+Q44)/(_xlfn.SWITCH(K26,\"Acide citrique\",VLOOKUP(G14,Tableau6[#All],2,FALSE),\"Hydroxyde de sodium\",VLOOKUP(L14,Tableau6[#All],4,FALSE),\"Bicarbonate de sodium\",(IF(L23=\"Solution basique, il faut le neutraliser avec acide ou bicarbonate de sodium\",VLOOKUP(G14,Tableau6[#All],3,FALSE),VLOOKUP(L14,Tableau6[#All],5,FALSE))))))*V7*(100/K27)*10),(((G38+G44-L38-L44+Q38+Q44)/(_xlfn.SWITCH(K26,\"Acide citrique\",VLOOKUP(G14,Tableau6[#All],2,FALSE),\"Hydroxyde de sodium\",VLOOKUP(L14,Tableau6[#All],4,FALSE),\"Bicarbonate de sodium\",(IF(L23=\"Solution basique, il faut le neutraliser avec acide ou bicarbonate de sodium\",VLOOKUP(G14,Tableau6[#All],3,FALSE),VLOOKUP(L14,Tableau6[#All],5,FALSE))))))*V7*(100/K27)))),(((G38+G44-L38-L44+Q38+Q44)/(_xlfn.SWITCH(K26,\"Acide citrique\",VLOOKUP(G14,Tableau6[#All],2,FALSE),\"Hydroxyde de sodium\",VLOOKUP(L14,Tableau6[#All],4,FALSE),\"Bicarbonate de sodium\",(IF(L23=\"Solution basique, il faut le neutraliser avec acide ou bicarbonate de sodium\",VLOOKUP(G14,Tableau6[#All],3,FALSE),VLOOKUP(L14,Tableau6[#All],5,FALSE))))))*(V7/V8)*(100/K27))))),\"compléter les espaces\",ABS(IF(K25=\"solide\",(IF(K26=\"Bicarbonate de sodium\",(((G38+G44-L38-L44+Q38+Q44)/(_xlfn.SWITCH(K26,\"Acide citrique\",VLOOKUP(G14,Tableau6[#All],2,FALSE),\"Hydroxyde de sodium\",VLOOKUP(L14,Tableau6[#All],4,FALSE),\"Bicarbonate de sodium\",(IF(L23=\"Solution basique, il faut le neutraliser avec acide ou bicarbonate de sodium\",VLOOKUP(G14,Tableau6[#All],3,FALSE),VLOOKUP(L14,Tableau6[#All],5,FALSE))))))*V7*(100/K27)*10),(((G38+G44-L38-L44+Q38+Q44)/(_xlfn.SWITCH(K26,\"Acide citrique\",VLOOKUP(G14,Tableau6[#All],2,FALSE),\"Hydroxyde de sodium\",VLOOKUP(L14,Tableau6[#All],4,FALSE),\"Bicarbonate de sodium\",(IF(L23=\"Solution basique, il faut le neutraliser avec acide ou bicarbonate de sodium\",VLOOKUP(G14,Tableau6[#All],3,FALSE),VLOOKUP(L14,Tableau6[#All],5,FALSE))))))*V7*(100/K27)))),(((G38+G44-L38-L44+Q38+Q44)/(_xlfn.SWITCH(K26,\"Acide citrique\",VLOOKUP(G14,Tableau6[#All],2,FALSE),\"Hydroxyde de sodium\",VLOOKUP(L14,Tableau6[#All],4,FALSE),\"Bicarbonate de sodium\",(IF(L23=\"Solution basique, il faut le neutraliser avec acide ou bicarbonate de sodium\",VLOOKUP(G14,Tableau6[#All],3,FALSE),VLOOKUP(L14,Tableau6[#All],5,FALSE))))))*(V7/V8)*(100/K27)))))","v":"compléter les espaces"}]
[null,null,null,null,null,null,null,null,null,"Type  :",null,null,null,"Min.",{"$f":"ABS(IF(K25=\"solide\",(IF(K26=\"Bicarbonate de sodium\",(((G38+G44-L38-L44+Q38+Q44)/(_xlfn.SWITCH(K26,\"Acide citrique\",VLOOKUP(G14,Tableau6[#All],2,FALSE),\"Hydroxyde de sodium\",VLOOKUP(L14,Tableau6[#All],4,FALSE),\"Bicarbonate de sodium\",(IF(L23=\"Solution basique, il faut le neutraliser avec acide ou bicarbonate de sodium\",VLOOKUP(G14,Tableau6[#All],3,FALSE),VLOOKUP(L14,Tableau6[#All],5,FALSE))))))*V7*(100/K27)*10),(((G38+G44-L38-L44+Q38+Q44)/(_xlfn.SWITCH(K26,\"Acide citrique\",VLOOKUP(G14,Tableau6[#All],2,FALSE),\"Hydroxyde de sodium\",VLOOKUP(L14,Tableau6[#All],4,FALSE),\"Bicarbonate de sodium\",(IF(L23=\"Solution basique, il faut le neutraliser avec acide ou bicarbonate de sodium\",VLOOKUP(G14,Tableau6[#All],3,FALSE),VLOOKUP(L14,Tableau6[#All],5,FALSE))))))*V7*(100/K27)))),(((G38+G44-L38-L44+Q38+Q44)/(_xlfn.SWITCH(K26,\"Acide citrique\",VLOOKUP(G14,Tableau6[#All],2,FALSE),\"Hydroxyde de sodium\",VLOOKUP(L14,Tableau6[#All],4,FALSE),\"Bicarbonate de sodium\",(IF(L23=\"Solution basique, il faut le neutraliser avec acide ou bicarbonate de sodium\",VLOOKUP(G14,Tableau6[#All],3,FALSE),VLOOKUP(L14,Tableau6[#All],5,FALSE))))))*(V7/V8)*(100/K27))))","v":{"$error":"#N/A"}},{"$f":"IF(K25=\"solide\",\"g de\", \"ml de\")","v":"ml de"},{"$f":"K26","v":0}]
[null,null,null,null,null,null,null,null,null,"Produit :",null,null,null,"Max.",{"$f":"ABS(IF(K25=\"solide\",(IF(K26=\"Bicarbonate de sodium\",(((H38+H44-M38-M44+R38+R44)/(_xlfn.SWITCH(K26,\"Acide citrique\",VLOOKUP(G14,Tableau6[#All],2,FALSE),\"Hydroxyde de sodium\",VLOOKUP(L14,Tableau6[#All],4,FALSE),\"Bicarbonate de sodium\",(IF(L23=\"Solution basique, il faut le neutraliser avec acide ou bicarbonate de sodium\",VLOOKUP(G14,Tableau6[#All],3,FALSE),VLOOKUP(L14,Tableau6[#All],5,FALSE))))))*V7*(100/K27)*10),(((H38+H44-M38-M44+R38+R44)/(_xlfn.SWITCH(K26,\"Acide citrique\",VLOOKUP(G14,Tableau6[#All],2,FALSE),\"Hydroxyde de sodium\",VLOOKUP(L14,Tableau6[#All],4,FALSE),\"Bicarbonate de sodium\",(IF(L23=\"Solution basique, il faut le neutraliser avec acide ou bicarbonate de sodium\",VLOOKUP(G14,Tableau6[#All],3,FALSE),VLOOKUP(L14,Tableau6[#All],5,FALSE))))))*V7*(100/K27)))),(((H38+H44-M38-M44+R38+R44)/(_xlfn.SWITCH(K26,\"Acide citrique\",VLOOKUP(G14,Tableau6[#All],2,FALSE),\"Hydroxyde de sodium\",VLOOKUP(L14,Tableau6[#All],4,FALSE),\"Bicarbonate de sodium\",(IF(L23=\"Solution basique, il faut le neutraliser avec acide ou bicarbonate de sodium\",VLOOKUP(G14,Tableau6[#All],3,FALSE),VLOOKUP(L14,Tableau6[#All],5,FALSE))))))*(V7/V8)*(100/K27))))","v":{"$error":"#N/A"}},{"$f":"IF(K25=\"solide\",\"g de\", \"ml de\")","v":"ml de"},{"$f":"K26","v":0}]
[null,null,null,null,null,null,null,null,null,"Pourcentage:"]
[]
[]
[]
[null,null,null,null,"Lavage au Savon Basique",null,null,null,null,"Lavage Acide",null,null,null,null,"Lavage au Savon Basique"]
[null,null,null,null,null,"Facteur correction:",{"$f":"100-H32","v":{"$error":"#DIV/0!"}},{"$f":"(G20-(G21))*100/G20","v":{"$error":"#DIV/0!"}},null,null,"Facteur correction:",{"$f":"100-M32","v":{"$error":"#DIV/0!"}},{"$f":"(L20-(L21))*100/L20","v":{"$error":"#DIV/0!"}},null,null,"Facteur correction:",{"$f":"100-R32","v":{"$error":"#DIV/0!"}},{"$f":"(Q20-(Q21))*100/Q20","v":{"$error":"#DIV/0!"}}]
[null,null,null,null,"Composition 1",null,null,null,null,"Composition 1",null,null,null,null,"Composition 1"]
[null,null,null,null,"Formule",null,{"$f":"VLOOKUP(G14,Tableau1[#All],2,FALSE)","v":{"$error":"#N/A"}},null,null,"Formule",null,{"$f":"VLOOKUP(L14,Tableau38[#All],2,FALSE)","v":{"$error":"#N/A"}},null,null,"Formule",null,{"$f":"VLOOKUP(Q14,Tableau1[#All],2,FALSE)","v":{"$error":"#N/A"}}]
[null,null,null,null,"Masse molaire",null,{"$f":"IF(ISTEXT(G14),VLOOKUP(G14,Tableau1[#All],3,FALSE),\"1\")","v":"1"},"g/mol",null,"Masse molaire",null,{"$f":"IF(ISTEXT(L14),VLOOKUP(L14,Tableau38[#All],3,FALSE),\"1\")","v":"1"},"g/mol",null,"Masse molaire",null,{"$f":"IF(ISTEXT(Q14),VLOOKUP(Q14,Tableau1[#All],3,FALSE),\"1\")","v":"1"},"g/mol"]
[null,null,null,null,"Masse volumique",null,{"$f":"IF(ISTEXT(G14),IF(G10=\"Liquide\",VLOOKUP(G14,Tableau1[#All],4,FALSE),VLOOKUP(G14,Tableau1[#All],5,FALSE)),\"1\")","v":"1"},"g/cm³",null,"Masse volumique",null,{"$f":"IF(ISTEXT(L14),IF(L10=\"Liquide\",VLOOKUP(L14,Tableau38[#All],4,FALSE),VLOOKUP(L14,Tableau38[#All],5,FALSE)),\"1\")","v":"1"},"g/cm³",null,"Masse volumique",null,{"$f":"IF(ISTEXT(Q14),IF(Q10=\"Liquide\",VLOOKUP(Q14,Tableau1[#All],4,FALSE),VLOOKUP(Q14,Tableau1[#All],5,FALSE)),\"1\")","v":"1"},"g/cm³"]
[null,null,null,null,"Concentration",null,{"$f":"IF(ISNUMBER(G15),IF(G10=\"Solide\",((G$11/(G$12))*(G15/100)*((G$32)/100)/G35),((G$11/G$12)*G36*(G15/100)*((G$32)/100)/G35)),0)","v":0},"mol/L",null,"Concentration",null,{"$f":"IF(ISNUMBER(L15),IF(L10=\"Solide\",((L$11/L$12)*(L15/100)*((L$32)/100)/L35),((L$11/L$12)*L36*(L15/100)*((L$32)/100)/L35)),0)","v":0},"mol/L",null,"Concentration",null,{"$f":"IF(ISNUMBER(Q15),IF(Q10=\"Solide\",((Q$11/(Q$12))*(Q15/100)*((Q$32)/100)/Q35),((Q$11/Q$12)*Q36*(Q15/100)*((Q$32)/100)/Q35)),0)","v":0},"mol/L"]
[null,null,null,null,"N. moles",null,{"$f":"IF(ISNUMBER(G15),IF(G$10=\"Solide\",((G$11*(G15/100)*(G$32/100)/G35)*VLOOKUP(G14,Tableau2[#All],2,FALSE)),((G$11*G36*(G15/100)*(G$32/100)/G35))*VLOOKUP(G14,Tableau2[#All],2,FALSE)),0)","v":0},{"$f":"IF(ISNUMBER(G15),IF(G$10=\"Solide\",((G$11*(G15/100)/G35)*VLOOKUP(G14,Tableau2[#All],2,FALSE)),((G$11*G36*(G15/100)/G35))*VLOOKUP(G14,Tableau2[#All],2,FALSE)),0)","v":0},null,"N. moles",null,{"$f":"IF(ISNUMBER(L15),IF(L$10=\"Solide\",((L$11*(L15/100)*(L$32/100)/L35)*VLOOKUP(L14,Tableau2[#All],2,FALSE)),((L$11*L36*(L15/100)*(L$32/100)/L35))*VLOOKUP(L14,Tableau2[#All],2,FALSE)),0)","v":0},{"$f":"IF(ISNUMBER(L15),IF(L$10=\"Solide\",((L$11*(L15/100)/L35)*VLOOKUP(L14,Tableau2[#All],2,FALSE)),((L$11*L36*(L15/100)/L35))*VLOOKUP(L14,Tableau2[#All],2,FALSE)),0)","v":0},null,"N. moles",null,{"$f":"IF(ISNUMBER(Q15),IF(Q$10=\"Solide\",((Q$11*(Q15/100)*(Q$32/100)/Q35)*VLOOKUP(Q14,Tableau2[#All],2,FALSE)),((Q$11*Q36*(Q15/100)*(Q$32/100)/Q35)*VLOOKUP(Q14,Tableau2[#All],2,FALSE))),0)","v":0},{"$f":"IF(ISNUMBER(Q15),IF(Q$10=\"Solide\",((Q$11*(Q15/100)/Q35)*VLOOKUP(Q14,Tableau2[#All],2,FALSE)),((Q$11*Q36*(Q15/100)/Q35)*VLOOKUP(Q14,Tableau2[#All],2,FALSE))),0)","v":0}]
[null,null,null,null,"Composition 2",null,null,null,null,"Composition 2",null,null,null,null,"Composition 2"]
[null,null,null,null,"Formule",null,{"$f":"VLOOKUP(G17,Tableau1[#All],2,FALSE)","v":{"$error":"#N/A"}},null,null,"Formule",null,{"$f":"VLOOKUP(L17,Tableau38[#All],2,FALSE)","v":{"$error":"#N/A"}},null,null,"Formule",null,{"$f":"VLOOKUP(Q17,Tableau1[#All],2,FALSE)","v":{"$error":"#N/A"}}]
[null,null,null,null,"Masse molaire",null,{"$f":"IF(ISTEXT(G17),VLOOKUP(G17,Tableau1[#All],3,FALSE),\"1\")","v":"1"},"g/mol",null,"Masse molaire",null,{"$f":"IF(ISTEXT(L17),VLOOKUP(L17,Tableau38[#All],3,FALSE),\"1\")","v":"1"},"g/mol",null,"Masse molaire",null,{"$f":"IF(ISTEXT(Q17),VLOOKUP(Q17,Tableau1[#All],3,FALSE),\"1\")","v":"1"},"g/mol"]
[null,null,null,null,"Masse volumique",null,{"$f":"IF(ISTEXT(G17),IF(G10=\"Liquide\",VLOOKUP(G17,Tableau1[#All],4,FALSE),VLOOKUP(G17,Tableau1[#All],5,FALSE)),\"1\")","v":"1"},"g/cm³",null,"Masse volumique",null,{"$f":"IF(ISTEXT(L17),IF(L10=\"Liquide\",VLOOKUP(L17,Tableau38[#All],4,FALSE),VLOOKUP(L17,Tableau38[#All],5,FALSE)),\"1\")","v":"1"},"g/cm³",null,"Masse volumique",null,{"$f":"IF(ISTEXT(Q17),IF(Q10=\"Liquide\",VLOOKUP(Q17,Tableau1[#All],4,FALSE),VLOOKUP(Q17,Tableau1[#All],5,FALSE)),\"1\")","v":"1"},"g/cm³"]
[null,null,null,null,"Concentration ",null,{"$f":"IF(ISNUMBER(G18),IF(G$10=\"Solide\",((G$11/G$12)*(G18/100)*((G$32)/100)/G41),((G$11/G$12)*G42*(G18/100)*((G$32)/100)/G41)),0)","v":0},"mol/L",null,"Concentration ",null,{"$f":"IF(ISNUMBER(L18),IF(L$10=\"Solide\",((L$11/L$12)*(L18/100)*((L$32)/100)/L41),((L$11/L$12)*L42*(L18/100)*((L$32)/100)/L41)),0)","v":0},"mol/L",null,"Concentration ",null,{"$f":"IF(ISNUMBER(Q18),IF(Q$10=\"Solide\",((Q$11/Q$12)*(Q18/100)*((Q$32)/100)/Q41),((Q$11/Q$12)*Q42*(Q18/100)*((Q$32)/100)/Q41)),0)","v":0},"mol/L"]
[null,null,null,null,"N. moles",null,{"$f":"IF(ISNUMBER(G18),IF(G$10=\"Solide\",((G$11*(G18/100)*(G$32/100)/G41)*VLOOKUP(G17,Tableau2[#All],2,FALSE)),((G$11*G42*(G18/100)*(G$32/100)/G41)*VLOOKUP(G17,Tableau2[#All],2,FALSE))),0)","v":0},{"$f":"IF(ISNUMBER(G18),IF(G$10=\"Solide\",((G$11*(G18/100)/G41)*VLOOKUP(G17,Tableau2[#All],2,FALSE)),((G$11*G42*(G18/100)/G41)*VLOOKUP(G17,Tableau2[#All],2,FALSE))),0)","v":0},null,"N. moles",null,{"$f":"IF(ISNUMBER(L18),IF(L$10=\"Solide\",((L$11*(L18/100)*(L$32/100)/L41)*VLOOKUP(L17,Tableau2[#All],2,FALSE)),((L$11*L42*(L18/100)*(L$32/100)/L41)*VLOOKUP(L17,Tableau2[#All],2,FALSE))),0)","v":0},{"$f":"IF(ISNUMBER(L18),IF(L$10=\"Solide\",((L$11*(L18/100)/L41)*VLOOKUP(L17,Tableau2[#All],2,FALSE)),((L$11*L42*(L18/100)/L41)*VLOOKUP(L17,Tableau2[#All],2,FALSE))),0)","v":0},null,"N. moles",null,{"$f":"IF(ISNUMBER(Q18),IF(Q$10=\"Solide\",((Q$11*(Q18/100)*(Q$32/100)/Q41)*VLOOKUP(Q17,Tableau2[#All],2,FALSE)),((Q$11*Q42*(Q18/100)*(Q$32/100)/Q41)*VLOOKUP(Q17,Tableau2[#All],2,FALSE))),0)","v":0},{"$f":"IF(ISNUMBER(Q18),IF(Q$10=\"Solide\",((Q$11*(Q18/100)/Q41)*VLOOKUP(Q17,Tableau2[#All],2,FALSE)),((Q$11*Q42*(Q18/100)/Q41)*VLOOKUP(Q17,Tableau2[#All],2,FALSE))),0)","v":0}]
[null,null,null,null,"Composition 3",null,"Solution",null,null,"Composition 3",null,"Solution",null,null,"Composition 3",null,"Solution"]
[null,null,null,null,"Porcentage:",null,null,null,null,"Porcentage:",null,null,null,null,"Porcentage:"]
[null,null,null,null,"Formule",null,{"$f":"VLOOKUP(G45,Tableau1[#All],2,FALSE)","v":{"$error":"#N/A"}},null,null,"Formule",null,{"$f":"VLOOKUP(L45,Tableau38[#All],2,FALSE)","v":{"$error":"#N/A"}},null,null,"Formule",null,{"$f":"VLOOKUP(Q45,Tableau1[#All],2,FALSE)","v":{"$error":"#N/A"}}]
[null,null,null,null,"Masse molaire",null,{"$f":"VLOOKUP(G45,Tableau1[#All],3,FALSE)","v":{"$error":"#N/A"}},"g/mol",null,"Masse molaire",null,{"$f":"VLOOKUP(L45,Tableau38[#All],3,FALSE)","v":{"$error":"#N/A"}},"g/mol",null,"Masse molaire",null,{"$f":"VLOOKUP(Q45,Tableau1[#All],3,FALSE)","v":{"$error":"#N/A"}},"g/mol"]
[null,null,null,null,"Masse volumique",null,{"$f":"VLOOKUP(G45,Tableau1[#All],4,FALSE)","v":{"$error":"#N/A"}},"g/cm³",null,"Masse volumique",null,{"$f":"VLOOKUP(L45,Tableau38[#All],4,FALSE)","v":{"$error":"#N/A"}},"g/cm³",null,"Masse volumique",null,{"$f":"VLOOKUP(Q45,Tableau1[#All],4,FALSE)","v":{"$error":"#N/A"}},"g/cm³"]
[null,null,null,null,"Concentration",null,{"$f":"IF(G$10=\"Solide\",((G$11/G$12)*(G46/100)*((G$32)/100)/G48),((G$11/G$12)*G49*(G46/100)*((G$32)/100)/G48))","v":{"$error":"#DIV/0!"}},"mol/L",null,"Concentration",null,{"$f":"IF(L$10=\"Solide\",((L$11/L$12)*(L46/100)*((L$32)/100)/L48),((L$11/L$12)*L49*(L46/100)*((L$32)/100)/L48))","v":{"$error":"#DIV/0!"}},"mol/L",null,"Concentration",null,{"$f":"IF(Q$10=\"Solide\",((Q$11/Q$12)*(Q46/100)*((Q$32)/100)/Q48),((Q$11/Q$12)*Q49*(Q46/100)*((Q$32)/100)/Q48))","v":{"$error":"#DIV/0!"}},"mol/L"]
[null,null,null,null,"N. moles",null,{"$f":"IF(G$10=\"Solide\",((G$11*(G46/100)*(G$32/100)/G48)*VLOOKUP(G45,Tableau2[#All],2,FALSE)),((G$11*G49*(G46/100)*(G$32/100)/G48))*VLOOKUP(G45,Tableau2[#All],2,FALSE))","v":{"$error":"#N/A"}},"mols",null,"N. moles",null,{"$f":"IF(L$10=\"Solide\",((L$11*(L46/100)*(L$32/100)/L48)*VLOOKUP(L45,Tableau2[#All],2,FALSE)),((L$11*L49*(L46/100)*(L$32/100)/L48)*VLOOKUP(L45,Tableau2[#All],2,FALSE)))","v":{"$error":"#N/A"}},"mols",null,"N. moles",null,{"$f":"IF(Q$10=\"Solide\",((Q$11*(Q46/100)*(Q$32/100)/Q48)*VLOOKUP(Q45,Tableau2[#All],2,FALSE)),((Q$11*Q49*(Q46/100)*(Q$32/100)/Q48)*VLOOKUP(Q45,Tableau2[#All],2,FALSE)))","v":{"$error":"#N/A"}},"mols"]
[null,null,null,null,"Composition 4",null,"Solution",null,null,"Composition 4",null,"Solution",null,null,"Composition 4",null,"Solution"]
[null,null,null,null,"Porcentage:",null,null,null,null,"Porcentage:",null,null,null,null,"Porcentage:"]
[null,null,null,null,"Formule",null,{"$f":"VLOOKUP(G52,Tableau1[#All],2,FALSE)","v":{"$error":"#N/A"}},null,null,"Formule",null,{"$f":"VLOOKUP(L52,Tableau38[#All],2,FALSE)","v":{"$error":"#N/A"}},null,null,"Formule",null,{"$f":"VLOOKUP(Q52,Tableau1[#All],2,FALSE)","v":{"$error":"#N/A"}}]
[null,null,null,null,"Masse molaire",null,{"$f":"VLOOKUP(G52,Tableau1[#All],3,FALSE)","v":{"$error":"#N/A"}},"g/mol",null,"Masse molaire",null,{"$f":"VLOOKUP(L52,Tableau38[#All],3,FALSE)","v":{"$error":"#N/A"}},"g/mol",null,"Masse molaire",null,{"$f":"VLOOKUP(Q52,Tableau1[#All],3,FALSE)","v":{"$error":"#N/A"}},"g/mol"]
[null,null,null,null,"Masse volumique",null,{"$f":"VLOOKUP(G52,Tableau1[#All],4,FALSE)","v":{"$error":"#N/A"}},"g/cm³",null,"Masse volumique",null,{"$f":"VLOOKUP(L52,Tableau38[#All],4,FALSE)","v":{"$error":"#N/A"}},"g/cm³",null,"Masse volumique",null,{"$f":"VLOOKUP(Q52,Tableau1[#All],4,FALSE)","v":{"$error":"#N/A"}},"g/cm³"]
[null,null,null,null,"Concentration",null,{"$f":"IF(G$10=\"Solide\",((G$11/G$12)*(G53/100)*((G$32)/100)/G55),((G$11/G$12)*G56*(G53/100)*((G$32)/100)/G55))","v":{"$error":"#DIV/0!"}},"mol/L",null,"Concentration",null,{"$f":"IF(L$10=\"Solide\",((L$11/L$12)*(L53/100)*((L$32)/100)/L55),((L$11/L$12)*L56*(L53/100)*((L$32)/100)/L55))","v":{"$error":"#DIV/0!"}},"mol/L",null,"Concentration",null,{"$f":"IF(Q$10=\"Solide\",((Q$11/Q$12)*(Q53/100)*((Q$32)/100)/Q55),((Q$11/Q$12)*Q56*(Q53/100)*((Q$32)/100)/Q55))","v":{"$error":"#DIV/0!"}},"mol/L"]
[null,null,null,null,"N. moles",null,{"$f":"IF(G$10=\"Solide\",((G$11*(G53/100)*(G$32/100)/G55)*VLOOKUP(G52,Tableau2[#All],2,FALSE)),((G$11*G56*(G53/100)*(G$32/100)/G55)*VLOOKUP(G52,Tableau2[#All],2,FALSE)))","v":{"$error":"#N/A"}},"mols",null,"N. moles",null,{"$f":"IF(L$10=\"Solide\",((L$11*(L53/100)*(L$32/100)/L55)*VLOOKUP(L52,Tableau2[#All],2,FALSE)),((L$11*L56*(L53/100)*(L$32/100)/L55)*VLOOKUP(L52,Tableau2[#All],2,FALSE)))","v":{"$error":"#N/A"}},"mols",null,"N. moles",null,{"$f":"IF(Q$10=\"Solide\",((Q$11*(Q53/100)*(Q$32/100)/Q55)*VLOOKUP(Q52,Tableau2[#All],2,FALSE)),((Q$11*Q56*(Q53/100)*(Q$32/100)/Q55)*VLOOKUP(Q52,Tableau2[#All],2,FALSE)))","v":{"$error":"#N/A"}},"mols"]
[]
[]
[]
[]
[]
[]
[]
[]
[]
[]
[]
[]
[]
[]
[]
[]
[]
[]
[]
[]
[]
[]
[]
[]
[]
[]
[]
[]
[]
[]
[]
[]
[]
[]
[]
[]
[]
[]
[]
[]
[null,null,null,null,null,null,"Neutralisant"]

{"sheet":"Feuil3","index":8,"n_rows":43,"n_cols":17,"rows_kept":43,"cut":false,"hidden":true,"merged":[]}
[]
["Tableau 1. Données savon pour le lavage basique",null,null,null,null,null,"Tableau 3. Données du produit neutralisant",null,null,null,null,null,"Tableau 4. Valeur N pour le calcul de neutralisation acide et basique"]
["Composant","Formule","mm ","d_aqueuse","d_sol",null,"Composant","Formule","mm ","d ","d_solide",null,"Composition","Acide citrique","Bicarbonate de sodium","Hydroxyde de sodium"]
[null,null,null,null,null,null,"Solution",0,0,0,null,null,"Solution",1,1,1]
["Hydroxyde de sodium","NaOH",39.997,1.52,2.13,null,"Acide chlorhydrique","HCl",36.457999999999998,1.19,null,null,"Hydroxyde de sodium",{"$f":"3/1","v":3},{"$f":"1/1","v":1}]
["Hydroxyde de potassium","KOH",56.104999999999997,1.3880999999999999,2.044,null,"Acide sulfurique","H2SO4 ",98.078000000000003,1.83,null,null,"Hydroxyde de calcium",{"$f":"3/2","v":1.5},3]
[null,null,null,null,null,null,"Acide acétique","CH3COOH ",60.052,1.0491999999999999,null,null,"Acide citrique",null,{"$f":"1/3","v":0.33333333333333331},{"$f":"1/3","v":0.33333333333333331}]
[null,null,null,null,null,null,"Acide citrique","H3C6H5O7",192.124,1.24,1.66,50,"Acide peracétique ",null,1,1]
[null,null,null,null,null,null,"Acide peracétique ","CH3COOOH",76.051400000000001,1.23,null,null,"Acide acétique",null,1,1]
[null,null,null,null,null,null,"Bicarbonate de sodium","NaHCO3 ",84.006,2.2200000000000002,2.2200000000000002,null,"Acide chlorhydrique",null,1,1]
[null,null,null,null,null,null,"Hydroxyde de calcium","Ca(OH)2",74.093000000000004,2.2400000000000002,2.2400000000000002,null,"Acide sulfurique",null,{"$f":"1/2","v":0.5},{"$f":"1/2","v":0.5}]
[null,null,null,null,null,null,"Hydroxyde de sodium","NaOH",39.997,1.52,2.13,50,"Hydroxyde de potassium",3,1]
[]
[]
[]
[]
[null,null,null,null,null,null,"Tableau 2",null,null,null,null,null,"Tableau 6"]
["Tableau 38. Données savon pour lavage acide ",null,null,null,null,null,"Valeur N pour le calcul de mol dans le lavage cumulé",null,null,null,null,null,"Valeur N pour le calcul de neutralisation cumulé"]
["Composant","Formule","mm ","d_aqueuse","d_sol",null,"Composant","N",null,null,null,"u","Composant ","Acide citrique","Bicarbonate de sodium pou sol basique","Hydroyde de sodium","Bicarbonate de sodium2 pour sol acide"]
["Acide acétique","CH3COOH ",60.052,1.0491999999999999,null,null,"Solution",0,null,null,null,null,"Hydroxyde de sodium",3,1,null,1]
["Acide chlorhydrique","HCl",36.457999999999998,1.19,null,null,"Hydroxyde de sodium",1,null,null,null,null,"Hydroxyde de calcium",3]
["Acide citrique","H3C6H5O7",192.124,1.24,1.66,null,"Hydroxyde de calcium",2,null,null,null,null,"Acide chlorhydrique",null,null,1,1]
["Acide peracétique ","CH3COOOH",76.051400000000001,1.23,null,null,"Acide chlorhydrique",1,null,null,null,null,"Acide sulfurique",null,null,1,1]
["Acide sulfurique","H2SO4 ",98.078000000000003,1.83,null,null,"Acide sulfurique",2,null,null,null,null,"Acide acétique",null,1,1,1]
[null,null,null,null,null,null,"Acide acétique",1,null,null,null,null,"Acide paracétique",null,null,1,1]
[null,null,null,null,null,null,"Acide paracétique",1,null,null,null,null,"Hydroxyde de potassium",3,1]
[null,null,null,null,null,null,"Bicarbonate de sodium",1,null,null,null,null,"Acide citrique",null,null,1,1]
[null,null,null,null,null,null,"Acide citrique",3]
[null,null,null,null,null,null,"Hydroxyde de potassium",1]
[]
[]
[]
[]
[]
[]
[]
[]
[]
[1]
["t= 1/2"]
["t= 3/4"]
["t= 1/4"]
[2]

{"sheet":"Lavage Basique (LABO)","index":9,"n_rows":29,"n_cols":19,"rows_kept":29,"cut":false,"hidden":true,"merged":[[13,12,13,14],[6,14,6,15],[2,12,2,19],[8,14,8,15],[7,14,7,15],[2,2,2,9],[6,2,6,5],[16,2,16,3],[19,8,19,9],[20,8,20,9],[11,2,11,3],[12,2,12,3],[13,2,13,3],[14,2,14,3],[15,2,15,3],[11,8,11,9],[12,8,12,9],[13,8,13,9],[18,8,18,9],[4,6,4,7],[18,2,18,3],[19,2,19,3],[20,2,20,3],[23,2,23,3],[22,2,22,3],[21,2,21,3],[20,4,20,5],[11,4,11,5],[12,4,12,5],[13,4,13,5],[18,4,18,5],[19,4,19,5]]}
[]
[]
[null,null,"Lavage au Savon Basique",null,null,null,null,null,null,null,null,null,"Neutralisant"]
[]
[null,null,null,"Type de savon : ","Solide",null,"Volume de solution :",null,0.1,"L",null,null,null,"Type  :","Solide"]
[null,null,null,null,null,null,null,null,null,null,null,null,null,null,null,null,null,null,"Fn"]
[null,null,"Dilution",null,null,null,null,"PP test",null,null,null,null,null,"Produit :","Acide citrique",null,null,"Composition 1",{"$f":"IF(O$7=\"Acide citrique\",VLOOKUP(E12,Tableau4[#All],2,FALSE),VLOOKUP(E12,Tableau4[#All],3,FALSE))","v":3}]
[null,null,null,"Produit :",2100,{"$f":"IF(E5=\"solide\",\"g de produit\", \"ml de produit\")","v":"g de produit"},null,"Facteur correction",20,null,null,null,null,"Porcentage:",99.5,null,null,"Composition 2",{"$f":"IF(O$7=\"Acide citrique\",VLOOKUP(I12,Tableau4[#All],2,FALSE),VLOOKUP(I12,Tableau4[#All],3,FALSE))","v":1}]
[null,null,null,"Filtrat: ",132.489,"L",null,null,null,null,null,null,null,"Formule",{"$f":"VLOOKUP(O7,Tableau3[#All],2,FALSE)","v":"H3C6H5O7"},null,null,"Composition 3",{"$f":"IF(O$7=\"Acide citrique\",VLOOKUP(E19,Tableau4[#All],2,FALSE),VLOOKUP(E19,Tableau4[#All],3,FALSE))","v":1}]
[null,null,null,null,null,null,null,null,null,null,null,null,null,"Masse molaire",{"$f":"VLOOKUP(O7,Tableau3[#All],3,FALSE)","v":192.124},"g/mol",null,"Composition 4",{"$f":"IF(O$7=\"Acide citrique\",VLOOKUP(I19,Tableau4[#All],2,FALSE),VLOOKUP(I19,Tableau4[#All],3,FALSE))","v":1}]
[null,null,null,null,null,null,null,null,null,null,null,null,null,"Masse volumique",{"$f":"VLOOKUP(O7,Tableau3[#All],4,FALSE)","v":1.24},"g/cm³"]
[null,null,"Composition 1",null,"Hydroxyde de sodium",null,null,"Composition 2","Solution",null,null,null," "]
[null,null,"Porcentage:",null,15,null,null,"Porcentage:",0]
[null,null,"Formule",null,{"$f":"VLOOKUP(E12,Tableau1[#All],2,FALSE)","v":"NaOH"},null,null,"Formule",{"$f":"VLOOKUP(I12,Tableau1[#All],2,FALSE)","v":{"$error":"#N/A"}},null,null,null,"Quantité de produit necessaire :",null,null,{"$f":"IF(O5=\"solide\",(((E17/S7)+(I17*S8)+(E24/S9)+(I24/S10))*O10*(100/O8)),(((E17/S7)+(I17/S8)+(E24/S9)+(I24/S10))*(O10/O11)*(100/O8)))","v":{"$error":"#N/A"}},{"$f":"IF(O5=\"solide\",\"g de\", \"ml de\")","v":"g de"},{"$f":"O7","v":"Acide citrique"},"(LABO)"]
[null,null,"Masse molaire",null,{"$f":"VLOOKUP(E12,Tableau1[#All],3,FALSE)","v":39.997},"g/mol",null,"Masse molaire",{"$f":"VLOOKUP(I12,Tableau1[#All],3,FALSE)","v":{"$error":"#N/A"}},"g/mol"]
[null,null,"Masse volumique",null,{"$f":"VLOOKUP(E12,Tableau1[#All],4,FALSE)","v":1.52},"g/cm³",null,"Masse volumique",{"$f":"VLOOKUP(I12,Tableau1[#All],4,FALSE)","v":{"$error":"#N/A"}},"g/cm³"]
[null,null,"Moles",null,{"$f":"IF(E5=\"Solide\",(E8*(E13/100)*(I8/100)/E15),(E8*E16*(E13/100)*(I8/100)/E15))","v":1.5751181338600395},"mol",null,"Concentration ",{"$f":"IF(E$5=\"Solide\",((E$8/E$9)*(I13/100)*((I$8)/100)/I15),((E$8/E$9)*I16*(I13/100)*((I$8)/100)/I15))","v":{"$error":"#N/A"}},"mol/L"]
[]
[null,null,"Composition 3",null,"Solution",null,null,"Composition 4","Solution"]
[null,null,"Porcentage:",null,null,null,null,"Porcentage:"]
[null,null,"Formule",null,{"$f":"VLOOKUP(E19,Tableau1[#All],2,FALSE)","v":{"$error":"#N/A"}},null,null,"Formule",{"$f":"VLOOKUP(I19,Tableau1[#All],2,FALSE)","v":{"$error":"#N/A"}}]
[null,null,"Masse molaire",null,{"$f":"VLOOKUP(E19,Tableau1[#All],3,FALSE)","v":{"$error":"#N/A"}},"g/mol",null,"Masse molaire",{"$f":"VLOOKUP(I19,Tableau1[#All],3,FALSE)","v":{"$error":"#N/A"}},"g/mol"]
[null,null,"Masse volumique",null,{"$f":"VLOOKUP(E19,Tableau1[#All],4,FALSE)","v":{"$error":"#N/A"}},"g/cm³",null,"Masse volumique",{"$f":"VLOOKUP(I19,Tableau1[#All],4,FALSE)","v":{"$error":"#N/A"}},"g/cm³"]
[null,null,"Concentration",null,{"$f":"IF(E$5=\"Solide\",((E$8/E$9)*(E20/100)*((I$8)/100)/E22),((E$8/E$9)*E23*(E20/100)*((I$8)/100)/E22))","v":{"$error":"#N/A"}},"mol/L",null,"Concentration",{"$f":"IF(E$5=\"Solide\",((E$8/E$9)*(I20/100)*((I$8)/100)/I22),((E$8/E$9)*I23*(I20/100)*((I$8)/100)/I22))","v":{"$error":"#N/A"}},"mol/L"]
[]
[]
[]
[null,null,null,null,null,null,null,null,null,null,null,null,null,{"$f":"E8/E9","v":15.850372483753368}]
[null,null,null,null,null,null,null,null,null,null,null,null,null,{"$f":"N28/2","v":7.9251862418766841}]

{"sheet":"Lavage acide - CARL","index":10,"n_rows":24,"n_cols":23,"rows_kept":24,"cut":false,"hidden":true,"merged":[[23,2,23,3],[2,8,2,15],[6,10,6,11],[7,10,7,11],[21,2,21,3],[22,2,22,3],[20,2,20,3],[20,4,20,5],[19,2,19,3],[19,4,19,5],[18,2,18,3],[18,4,18,5],[11,2,11,3],[2,2,2,5],[6,2,6,5],[8,10,8,11],[13,8,13,10]]}
[]
[]
[null,null,"Lavage acide",null,null,null,null,null,"Neutralisant"]
[]
[null,null,null,"Type de produit : ","Solide",null,null,null,null,"Type  :","Solide"]
[null,null,null,null,null,null,null,null,null,null,null,null,null,null,"Fn"]
[null,null,"Dilution",null,null,null,null,null,null,"Produit :","Bicarbonate de sodium",null,null,"Composition 1",{"$f":"IF(K$7=\"Hydroxyde de sodium\", VLOOKUP(E19,Tableau4[#All],4,FALSE),VLOOKUP(E19,Tableau4[#All],3,FALSE))","v":0.33333333333333331},null,null,null,null,{"$f":"E8*40/E9","v":90.250090612540788}]
[null,null,null,"Produit :",622.5,{"$f":"IF(E5=\"solide\",\"g de produit\", \"ml de produit\")","v":"g de produit"},null,null,null,"Porcentage:",99.5,null,null,null,null,null,null,null,null,null,"ch bi",{"$f":"(3.14/4*(11.125*0.0254)^2)*(10.4*0.0254)*1000","v":16.557859198731499},"l"]
[null,null,null,"Filtrat: ",275.89999999999998,"L",null,null,null,"Formule",{"$f":"VLOOKUP(K7,Tableau3[#All],2,FALSE)","v":"NaHCO3 "}]
[null,null,null,null,null,null,null,null,null,"Masse molaire",{"$f":"VLOOKUP(K7,Tableau3[#All],3,FALSE)","v":84.006},"mol/L",null,null,null,null,null,null,null,null,"ch naoh",{"$f":"(3.14/4*(11.125*0.0254)^2)*(6.4*0.0254)*1000","v":10.189451814603999},"l"]
[null,null,null,null,null,null,null,null,null,"Masse volumique",{"$f":"VLOOKUP(K7,Tableau3[#All],4,FALSE)","v":2.2200000000000002},"g/cm³",null,null,null,null,null,null,null,{"$f":"73*3.78","v":275.94}]
[null,null,"Volume de solution :",null,16.55,"L",null,null," ",null,null,null,null,null,null,null,null,null,{"$f":"16.55*E8/E9","v":37.340974990938747}]
[]
[null,null,null,"PP test",null,null,null,null,"Quantité de produit necessaire :",null,null,{"$f":"IF(K5=\"solide\",((E24*E12/O7)*K10*(100/K8)),((E24*E12/O7)*(K10/K11)*(100/K8)))","v":29.241453641111825},{"$f":"IF(K5=\"solide\",\"g de\", \"ml de\")","v":"g de"},{"$f":"K7","v":"Bicarbonate de sodium"}]
[null,null,null,"Facteur correction",60]
[null,null,null,null,null,null,null,null,null,null,null,null,null,null,null,null,null,null,null,{"$f":"631-561","v":70}]
[]
[]
[null,null,"Composition 1",null,"Acide citrique"]
[null,null,"Porcentage:",null,99]
[null,null,"Formule",null,{"$f":"VLOOKUP(E19,Feuil3!G3:J15,2,FALSE)","v":"H3C6H5O7"}]
[null,null,"Masse molaire",null,{"$f":"VLOOKUP(E19,Tableau3[#All],3,FALSE)","v":192.124},"g/mol"]
[null,null,"Masse volumique",null,{"$f":"VLOOKUP(E19,Tableau3[#All],4,FALSE)","v":1.24},"g/cm³"]
[null,null,"Concentration",null,{"$f":"IF(E5=\"Solide\",((E$8/E$9)*(E20/100)*((E$15)/100)/E22),((E$8/E$9)*E23*(E20/100)*((E$15)/100)/E22))","v":6.9757752576264835E-3},"mol/L"]

{"sheet":"Lavage acide -CARL","index":11,"n_rows":24,"n_cols":23,"rows_kept":24,"cut":false,"hidden":true,"merged":[[20,2,20,3],[20,4,20,5],[21,2,21,3],[22,2,22,3],[23,2,23,3],[11,2,11,3],[13,8,13,10],[18,2,18,3],[18,4,18,5],[19,2,19,3],[19,4,19,5],[8,10,8,11],[2,2,2,5],[2,8,2,15],[6,2,6,5],[6,10,6,11],[7,10,7,11]]}
[]
[]
[null,null,"Lavage acide",null,null,null,null,null,"Neutralisant"]
[]
[null,null,null,"Type de produit : ","Solide",null,null,null,null,"Type  :","Solide"]
[null,null,null,null,null,null,null,null,null,null,null,null,null,null,"Fn"]
[null,null,"Dilution",null,null,null,null,null,null,"Produit :","Bicarbonate de sodium",null,null,"Composition 1",{"$f":"IF(K$7=\"Hydroxyde de sodium\", VLOOKUP(E19,Tableau4[#All],4,FALSE),VLOOKUP(E19,Tableau4[#All],3,FALSE))","v":0.33333333333333331},null,null,null,null,{"$f":"E8*40/E9","v":187.94013087878994}]
[null,null,null,"Produit :",622.5,{"$f":"IF(E5=\"solide\",\"g de produit\", \"ml de produit\")","v":"g de produit"},null,null,null,"Porcentage:",99.5,null,null,null,null,null,null,null,null,null,"ch bi",{"$f":"(3.14/4*(11.125*0.0254)^2)*(10.4*0.0254)*1000","v":16.557859198731499},"l"]
[null,null,null,"Filtrat: ",132.489,"L",null,null,null,"Formule",{"$f":"VLOOKUP(K7,Tableau3[#All],2,FALSE)","v":"NaHCO3 "}]
[null,null,null,null,null,null,null,null,null,"Masse molaire",{"$f":"VLOOKUP(K7,Tableau3[#All],3,FALSE)","v":84.006},"mol/L",null,null,null,null,null,null,null,null,"ch naoh",{"$f":"(3.14/4*(11.125*0.0254)^2)*(6.4*0.0254)*1000","v":10.189451814603999},"l"]
[null,null,null,null,null,null,null,null,null,"Masse volumique",{"$f":"VLOOKUP(K7,Tableau3[#All],4,FALSE)","v":2.2200000000000002},"g/cm³",null,null,null,null,null,null,null,{"$f":"73*3.78","v":275.94}]
[null,null,"Volume de solution :",null,16.55,"L",null,null," ",null,null,null,null,null,null,null,null,null,{"$f":"16.55*E8/E9","v":77.760229151099338}]
[]
[null,null,null,"PP test",null,null,null,null,"Quantité de produit necessaire :",null,null,{"$f":"IF(K5=\"solide\",((E24*E12/O7)*K10*(100/K8)),((E24*E12/O7)*(K10/K11)*(100/K8)))","v":30.446742973313825},{"$f":"IF(K5=\"solide\",\"g de\", \"ml de\")","v":"g de"},{"$f":"K7","v":"Bicarbonate de sodium"}]
[null,null,null,"Facteur correction",30]
[null,null,null,null,null,null,null,null,null,null,null,null,null,null,null,null,null,null,null,{"$f":"631-561","v":70}]
[]
[]
[null,null,"Composition 1",null,"Acide citrique"]
[null,null,"Porcentage:",null,99]
[null,null,"Formule",null,{"$f":"VLOOKUP(E19,Feuil3!G3:J15,2,FALSE)","v":"H3C6H5O7"}]
[null,null,"Masse molaire",null,{"$f":"VLOOKUP(E19,Tableau3[#All],3,FALSE)","v":192.124},"g/mol"]
[null,null,"Masse volumique",null,{"$f":"VLOOKUP(E19,Tableau3[#All],4,FALSE)","v":1.24},"g/cm³"]
[null,null,"Concentration",null,{"$f":"IF(E5=\"Solide\",((E$8/E$9)*(E20/100)*((E$15)/100)/E22),((E$8/E$9)*E23*(E20/100)*((E$15)/100)/E22))","v":7.2633063634684652E-3},"mol/L"]